Cogmind - Beta 16 @@@ ROGUE MODE // 2026.01.03 @ 17:56:11 Player: Okami Result: Destroyed by Y-45 Defender with Heavy Assault Rifle Performance ------------- Evolutions (1) 500 Regions Visited (4) 800 Robots Destroyed (61) 305 Value Destroyed (1386) 1386 Prototype IDs (3) 60 Alien Tech Used (0) 0 Bonus (1021) 1021 TOTAL SCORE: 4072 Bonus ------- High Alert Combat Kills 11 Follower Combat Kills 310 Entered Garrisons 200 Used RIF Installer 500 Cogmind --------- Core Integrity 0/400 Matter 300/300 Energy 57/100 System Corruption 0% Temperature Warm (107) Movement Core (250) Ox4 Location -9/Garrison Parts ------- > --- POWER (1) -------- (None) > --- PROPULSION (3) --- (None) > --- UTILITY (3) ------ Medium Storage Unit Visual Processing Unit > --- WEAPON (2) ------- Beam Rifle > --- INVENTORY (10) --- Improved Ion Engine Improved Ion Engine Advanced Treads Improved Heat Sink Sensor Array Signal Interpreter Improved Power Shielding Grenade Launcher Rocket Launcher Peak State ------------ > --- POWER ------------ Improved Ion Engine > --- PROPULSION ------- Advanced Treads Advanced Treads Advanced Treads > --- UTILITY ---------- Medium Storage Unit Visual Processing Unit Hardened Light Armor Plating > --- WEAPON ----------- Beam Rifle Rocket Launcher > --- INVENTORY -------- Improved Ion Engine Improved Ion Engine Advanced Treads Improved Heat Sink Improved Power Shielding Hardened Light Armor Plating Medium Laser Beam Rifle Assault Rifle Grenade Launcher [Rating: 22] Favorites ----------- Power Ion Engine Engine Ion Engine Propulsion Advanced Treads Treads Advanced Treads Leg Aluminum Leg Wheel Armored Wheel Utility Medium Storage Unit Device Improved Heat Sink Storage Medium Storage Unit Processor Visual Processing Unit Protection Hardened Light Armor Plating Weapon Medium Laser Energy Gun Medium Laser Ballistic Gun Heavy Assault Rifle Launcher Rocket Launcher Build | -11 -10 -9 -9 -9 ------- Run | Yrd Mat Mat Sto Gar Slots Evolved 2 | . . 2 . . Power . | . . . . . Propulsion 1 | . . 1 . . Utility 1 | . . 1 . . Weapon . | . . . . . Parts Attached 37 | 8 4 21 3 1 Power 8 | 2 . 5 1 . Engine 8 | 2 . 5 1 . Core . | . . . . . Reactor . | . . . . . Propulsion 11 | 2 . 9 . . Treads 5 | 2 . 3 . . Leg 5 | . . 5 . . Wheel 1 | . . 1 . . Hover . | . . . . . Flight . | . . . . . Utility 10 | 2 3 4 1 . Device 3 | 1 1 1 . . Storage 4 | 1 2 1 . . Processor 1 | . . 1 . . Hackware . | . . . . . Protection 2 | . . 1 1 . Artifact . | . . . . . Weapon 8 | 2 1 3 1 1 Energy Gun 5 | 2 . 2 . 1 Energy Cannon . | . . . . . Ballistic Gun 1 | . . . 1 . Ballistic Cannon . | . . . . . Launcher 2 | . 1 1 . . Special Weapon . | . . . . . Impact Weapon . | . . . . . Slashing Weapon . | . . . . . Piercing Weapon . | . . . . . Special Melee Weapon . | . . . . . Unidentified Prototypes 1 | . . 1 . . Parts Lost 4 | . . 2 . 2 Power . | . . . . . Propulsion 2 | . . 1 . 1 Utility . | . . . . . Weapon 2 | . . 1 . 1 Highest Loss Streak 2 | . . 1 . 2 To Critical Strikes . | . . . . . Average Backups 8 | 3 7 9 10 9 Power 1 | . 1 1 2 2 Propulsion 1 | 1 1 . 1 1 Utility 3 | . 2 3 3 4 Weapon 2 | . 1 3 3 2 Tool/Special . | . . . . . Unused Backups 16 | . 3 6 1 6 Power 4 | . 1 1 . 2 Propulsion 3 | . 2 . . 1 Utility 7 | . . 4 . 3 Weapon 2 | . . 1 1 . Tool/Special . | . . . . . Average Slot Usage (%) 98 | . 100 97 99 98 Engine 11 | . 14 11 11 10 Treads 19 | . 28 5 33 32 Leg 10 | . . 25 . . Device 5 | . 14 3 . . Storage 11 | . 14 11 11 11 Processor 7 | . . 10 11 11 Protection 6 | . . 7 11 10 Energy Gun 21 | . 27 21 17 11 Ballistic Gun 2 | . . . 3 10 Peak Build Rating 22 | 9 10 21 22 21 Average Rating 14 | 7 9 14 20 20 On Entrance 12 | . 9 10 21 21 Avg Prop Armor Cover (%) 6 | . . 6 . . Naked Turns . | . . . . . Heaviest Build 50 | 15 50 34 29 29 Greatest Support 66 | 40 40 66 66 66 Greatest Overweight (x) 8 | 2 1 8 . 4 Average Overweight (x) . | . . . . . Largest Inventory Capacity 20 | 8 20 15 10 10 Average Capacity 9 | 7 10 10 10 10 Most Carried 11 | 5 9 11 10 10 Average Carried 8 | 3 7 9 9 9 Final Capacity 10 | 8 10 10 10 10 Final Carried 10 | 5 9 10 10 9 Class Distribution -------------------- 58% | Mutant 27% | Scavenger-Mutant 13% | Commander-Mutant Dominant Class ---------------- Mutant | -10/Materials Scavenger-Mutant | -9/Materials Mutant | -9/Storage Commander-Mutant | -9/Garrison Resources | -11 -10 -9 -9 -9 ----------- Run | Yrd Mat Mat Sto Gar Matter Collected 939 | 280 80 356 107 116 Remotely . | . . . . . Salvage Created 2286 | 124 231 1268 307 356 Parts 121 | 2 14 67 19 19 Haulers Intercepted . | . . . . . Recyclers Shooed 7 | . . 6 1 . Parts Field Recycled . | . . . . . Retrieved Matter . | . . . . . Parts Self-Destructed . | . . . . . Prevented . | . . . . . Parts Restored . | . . . . . Kills | -11 -10 -9 -9 -9 ------- Run | Yrd Mat Mat Sto Gar Combat Hostiles Destroyed 38 | . 4 19 6 9 Guns 30 | . 3 14 5 8 AOE 5 | . 1 3 . 1 Classes Destroyed 12 | 3 3 5 . 1 Worker 4 | 2 1 . 1 . Builder 2 | . 1 1 . . Tunneler 2 | 1 . 1 . . Recycler 8 | 1 . 5 2 . Mechanic 1 | . . 1 . . Operator 1 | . . 1 . . Watcher 4 | . 1 3 . . Swarmer 9 | . . 4 4 1 Grunt 21 | . 4 9 2 6 Brawler 1 | . . 1 . . Duelist 1 | . . . . 1 Sentry 7 | . . 5 1 1 Best Kill Streak 5 | 2 2 4 5 4 Combat Bots Only 4 | . 2 4 4 4 Max Kills in Single Turn 2 | 1 1 1 2 1 Gunslinging . | . . . . . Exploded 1 | . 1 1 . 1 Melee . | . . . . . Uniques/NPCs Destroyed . | . . . . . Combat | -11 -10 -9 -9 -9 -------- Run | Yrd Mat Mat Sto Gar Hostile Shots Fired 206 | . 24 79 28 75 Missed 61 | . 8 20 14 19 Hits 145 | . 16 59 14 56 Melee 12 | . . . . 12 Projectile 133 | . 16 59 14 44 Critical Strikes 9 | . 2 1 1 5 Damage Taken 2050 | . 217 711 207 915 Core 467 | . 54 95 36 282 Absorbed by Shields . | . . . . . Regen/Repaired (Parts) 31 | . . . 31 . Core Remaining (%) 89 | 100 78 . . . Volleys Fired 180 | 7 23 96 27 27 Largest 2 | 2 2 2 2 2 Hottest 106 | 90 90 106 106 106 Shots Fired 352 | 14 46 187 51 54 Gun 341 | 14 44 184 47 52 Cannon . | . . . . . Launcher 11 | . 2 3 4 2 Special . | . . . . . Kinetic 24 | . . . 1 23 Thermal 274 | 7 23 169 46 29 Explosive 11 | . 2 3 4 2 Electromagnetic 43 | 7 21 15 . . Robot Hit Streak 17 | 4 11 12 13 17 Robot Miss Streak 8 | 2 8 5 3 4 Penetration Max . | . . . . . Secondary Targets 2 | . . 1 . 1 Max Gunslinging Chain 1 | . . 1 . 1 Shots Hit Robots 223 | 7 28 120 30 38 Core Hits 98 | 4 13 53 14 14 Critical Kills . | . . . . . Critical Parts Destroyed . | . . . . . Critical Strikes 20 | . 1 15 2 2 Burn 20 | . 1 15 2 2 Melee Attacks . | . . . . . Impact . | . . . . . Slashing . | . . . . . Piercing . | . . . . . Sneak Attacks . | . . . . . Combat Hostiles . | . . . . . Follow-up Attacks . | . . . . . Damage Inflicted 3414 | 94 455 1765 536 564 Guns 3019 | 94 367 1555 477 526 Cannons . | . . . . . Explosions 380 | . 88 210 44 38 Melee . | . . . . . Ramming 15 | . . . 15 . Kinetic 287 | . . . 16 271 Thermal 2383 | 37 214 1416 461 255 Explosive 380 | . 88 210 44 38 Electromagnetic 349 | 57 153 139 . . Impact . | . . . . . Slashing . | . . . . . Piercing . | . . . . . Highest Corruption 1 | . 1 . . . Average Corruption 1 | . 1 . . . Corruption Purged . | . . . . . Corruption Blocked . | . . . . . Effects 2 | . 2 . . . Message Errors 1 | . 1 . . . Matter Fused 1 | . 1 . . . Overload Shots . | . . . . . Overflow Damage 7 | . . 7 . . Projectiles . | . . . . . Explosions 7 | . . 7 . . Melee . | . . . . . Knockbacks . | . . . . . Impact . | . . . . . Kinetic . | . . . . . Secondary . | . . . . . Self-Inflicted Damage . | . . . . . Shots . | . . . . . Rammed 1 | . . . 1 . Targets Rammed 2 | . . . 2 . Kicked . | . . . . . Crushed 1 | . . . 1 . Highest Temperature 446 | 90 117 446 360 177 Average Temperature 100 | 44 42 105 150 50 Received Heat Transfer 651 | . 159 276 39 177 Effects 4 | . . 3 1 . Shutdowns 3 | . . 2 1 . Matter Decay 1 | . . 1 . . Siege Activations . | . . . . . Martial Activations . | . . . . . Shielding Activations . | . . . . . Robots Disrupted . | . . . . . Combat Hostiles . | . . . . . Robots Corrupted . | . . . . . Combat Hostiles . | . . . . . Parts Fried . | . . . . . Impact Corruptions . | . . . . . Robots Melted 3 | . . 2 1 . Combat Hostiles 3 | . . 2 1 . Parts Melted 19 | . . 14 3 2 Heat Transferred 8251 | 111 703 5143 1406 888 Parts Sabotaged . | . . . . . Parts Stolen . | . . . . . Parts Stripped . | . . . . . Power Chain Reactions . | . . . . . Alert | -11 -10 -9 -9 -9 ------- Run | Yrd Mat Mat Sto Gar Maximum Alert Level 2 | . . . 1 2 Low Security (%) 89 | 100 100 100 94 29 Level 1 9 | . . . 5 65 Level 2 . | . . . . 5 Level 3 . | . . . . . Level 4 . | . . . . . Level 5 . | . . . . . High Security . | . . . . . Max Security . | . . . . . Peak Influence 453 | 10 49 152 217 453 Initial 99 | . . 13 44 99 Average 81 | 1 8 65 119 275 Influence Increases 1699 | 20 179 593 363 544 Destroy 0b10 Robot/C 1040 | . 80 380 200 380 Destroy 0b10 Robot/NC 115 | 20 15 60 20 . Destroy Leader 180 | . 32 116 32 . Allied During Kill 131 | . . . 49 82 Successful Hack 25 | . 10 2 13 . Disable Machine 15 | . . . 15 . Destroy Structure 88 | . 12 20 34 22 Lose Combat Pursuer 105 | . 30 15 . 60 Influence Decreases 1256 | 20 146 519 317 254 Entered New Map 137 | . . 20 63 54 Time Decay 909 | 20 146 489 254 . Lost Part 30 | . . 10 . 20 Lost Ally 180 | . . . . 180 Squads Dispatched 5 | . 1 3 1 . Investigation 3 | . 1 2 . . Extermination . | . . . . . Reinforcement 1 | . . 1 . . Assault . | . . . . . Garrison 1 | . . . 1 . Intercept . | . . . . . Searches Triggered . | . . . . . Construction Impeded . | . . . . . Haulers Reinforced . | . . . . . Active Scanning Responses . | . . . . . Cargo Convoy Interrupts . | . . . . . Stealth | -11 -10 -9 -9 -9 --------- Run | Yrd Mat Mat Sto Gar Distress Signals 10 | . 1 4 2 3 Communications Jammed . | . . . . . Distress Signals . | . . . . . Times Spotted 90 | . 12 34 14 30 Peak Tracking Total 8 | . 2 4 3 8 Tactical Retreats 4 | . 2 1 . 1 Traps | -11 -10 -9 -9 -9 ------- Run | Yrd Mat Mat Sto Gar Traps Triggered 4 | . 1 1 1 1 Indirectly . | . . . . . Trap Hack Attempts . | . . . . . Triggered . | . . . . . Disarmed . | . . . . . Reprogrammed . | . . . . . Reused . | . . . . . Traps Extracted . | . . . . . Installed . | . . . . . Triggered . | . . . . . Machines | -11 -10 -9 -9 -9 ---------- Run | Yrd Mat Mat Sto Gar Machines Disabled 1 | . . . 1 . Max in Single Turn 1 | . . . 1 . Machines Repaired . | . . . . . Machines Dismantled . | . . . . . Machines Sabotaged . | . . . . . Overloaded Fab Kills . | . . . . . Hacking | -11 -10 -9 -9 -9 --------- Run | Yrd Mat Mat Sto Gar Machines Accessed 16 | . 4 5 7 . Terminals 11 | . 3 5 3 . Fabricators . | . . . . . Repair Stations 1 | . . . 1 . Recycling Units 3 | . 1 . 2 . Scanalyzers . | . . . . . Garrison Access 1 | . . . 1 . Total Hacks 38 | . 12 11 15 . Successful 27 | . 11 7 9 . Failed 11 | . 1 4 6 . Catastrophic 2 | . . 1 1 . Database Lockouts . | . . . . . Manual 2 | . . 2 . . Terminals 29 | . 8 11 10 . Fabricators . | . . . . . Repair Stations 2 | . . . 2 . Recycling Units 6 | . 4 . 2 . Scanalyzers . | . . . . . Garrison Access 1 | . . . 1 . Terminal Hacks 19 | . 7 7 5 . Record 7 | . 2 4 1 . Prototype ID Bank 1 | . 1 . . . Open Door 1 | . . . 1 . Emergency Access Points 1 | . . 1 . . Alert Level 3 | . 2 1 . . Dispatch Records 1 | . . . 1 . Maintenance Status 1 | . . 1 . . Transport Status 1 | . . . 1 . Reinforcement Status 1 | . 1 . . . Zone Layout 2 | . 1 . 1 . Fabricator Hacks . | . . . . . Repair Station Hacks 2 | . . . 2 . Scan Component 1 | . . . 1 . Repair 1 | . . . 1 . Recycling Unit Hacks 5 | . 4 . 1 . Recycle Component 2 | . 2 . . . Process 1 | . 1 . . . Report Inventory 2 | . 1 . 1 . Scanalyzer . | . . . . . Garrison Access Hacks 1 | . . . 1 . Unlock Access 1 | . . . 1 . Unauthorized Hacks . | . . . . . Terminals . | . . . . . Fabricators . | . . . . . Repair Stations . | . . . . . Recycling Units . | . . . . . Scanalyzers . | . . . . . Garrison Access . | . . . . . Data Cores Recovered . | . . . . . Used . | . . . . . Hacking Detections 11 | . 2 4 5 . Full Trace Events 2 | . 1 1 . . Feedback Events . | . . . . . Feedback Blocked . | . . . . . Robot Schematics Acquired . | . . . . . Robots Built . | . . . . . Authchips . | . . . . . Time . | . . . . . Total Robot Build Rating . | . . . . . Part Schematics Acquired . | . . . . . Parts Built . | . . . . . Authchips . | . . . . . Time . | . . . . . Total Part Build Rating . | . . . . . Part Studies Acquired . | . . . . . Parts Repaired 1 | . . . 1 . Time 26 | . . . 26 . Parts Recycled 2 | . 2 . . . Recycled Matter 210 | . 210 . . . Retrieved Matter . | . . . . . Retrieved Components . | . . . . . Parts Scanalyzed . | . . . . . Part Schematics Acquired . | . . . . . Parts Damaged . | . . . . . Bothacking | -11 -10 -9 -9 -9 ------------ Run | Yrd Mat Mat Sto Gar Used RIF Installer 1 | . . . . 1 Robots Hacked . | . . . . . Non-combat . | . . . . . Combat . | . . . . . Robot Hacks Applied . | . . . . . Relay Couplers Released . | . . . . . Fabnet Peak Effective % . | . . . . . Robots Rewired . | . . . . . Allies Hacked . | . . . . . Hacks Repelled . | . . . . . Allies | -11 -10 -9 -9 -9 -------- Run | Yrd Mat Mat Sto Gar Total Allies 10 | . . . 10 . Largest Group 10 | . . . 10 9 Highest-Rated Group 88 | . . . 88 80 Highest-Rated Ally 16 | . . . 16 16 Total Orders . | . . . . . Ally Attacks 85 | . . . 22 63 Total Damage 762 | . . . 216 546 Kills 15 | . . . 5 10 Allies Corrupted . | . . . . . Allies Melted . | . . . . . Intel | -11 -10 -9 -9 -9 ------- Run | Yrd Mat Mat Sto Gar Active Infowar (turns) 3352 | 112 617 1529 559 535 Optics 2588 | . . 1494 559 535 Terrain 764 | 112 617 35 . . Robot Analysis Total . | . . . . . Derelict Logs Recovered . | . . . . . Drone Launches . | . . . . . Drone Recoveries . | . . . . . Exploration | -11 -10 -9 -9 -9 ------------- Run | Yrd Mat Mat Sto Gar Turns Passed 4018 | 229 1102 1593 559 535 Spaces Moved 2328 | 121 619 971 307 310 Core 11 | 9 . 1 . 1 Treads 1502 | 112 619 155 307 309 Legs 815 | . . 815 . . Wheels . | . . . . . Hover . | . . . . . Flight . | . . . . . Fastest Speed 50 | 50 160 120 145 145 Average Speed 142 | 156 161 126 145 145 Slowest Speed 450 | 160 240 450 145 250 Overloaded Moves . | . . . . . Propulsion Burnouts . | . . . . . Robots Hopped . | . . . . . Potential Cave-ins . | . . . . . Cave-ins Triggered . | . . . . . Exploration Rate (%) 37 | 6 62 48 35 38 Regions Visited 4 Branch Regions 1 Pre-discovered Areas . | . . . . . Known Exits Taken 1 | . . . 1 . Unknown Exits Taken 3 | 1 1 1 . . Scrap Searched . | . . . . . Spaces Dug . | . . . . . Terrain Destroyed 87 | . 12 19 38 18 Melee . | . . . . . Projectile . | . . . . . AOE 87 | . 12 19 38 18 Terrain Rammed . | . . . . . Walls Destroyed . | . . . . . Machines Disabled . | . . . . . Actions | -11 -10 -9 -9 -9 --------- Run | Yrd Mat Mat Sto Gar Total 2681 | 143 672 1158 368 340 Wait 47 | . 13 13 21 . Move 2324 | 120 618 970 306 310 Hop . | . . . . . Pick Up 37 | 7 9 19 2 . Fast Attach 15 | 6 . 7 2 . Attach 8 | 1 . 6 . 1 Detach 5 | . . 5 . . Swap 27 | 1 5 15 4 2 Drop 36 | 1 4 27 4 . Fire 180 | 7 23 96 27 27 Melee . | . . . . . Ram . | . . . . . Kick . | . . . . . Crush 2 | . . . 2 . Escape Stasis . | . . . . . Rewire . | . . . . . Trap . | . . . . . Miscellaneous . | . . . . . Route ------- -11/Scrapyard -10/Materials (discovered 2 exits: *Mat / [*Min]) -9/Materials (discovered 4 exits: [*Mat] / [*Min x2] / *Sto) -9/Storage -9/Garrison History --------- Turn | Location | Event 20 | -11/Scrapyard | Discovered new exit (range 16) 230 | -11/Scrapyard | Entered Materials 231 | -10/Materials | Met a group of wandering Federalists 325 | -10/Materials | Build established: Mutant 564 | -10/Materials | Discovered new exit (range 15) 763 | -10/Materials | Discovered new exit (range 3) 1332 | -10/Materials | Entered another Materials area 1332 | -9/Materials | Evolved 2 slots: Propulsion x1, Utility x1 1919 | -9/Materials | Build established: Scavenger-Mutant 1938 | -9/Materials | Discovered new exit (range 13) 2091 | -9/Materials | Discovered new exit (range 5) 2133 | -9/Materials | Discovered new exit (range 6) 2437 | -9/Materials | Discovered new exit (range 12) 2925 | -9/Materials | Entered Storage 3008 | -9/Storage | Build established: Mutant 3216 | -9/Storage | Assisted by bots powering up and referring to "LRC-V3" 3240 | -9/Storage | Garrison activated, responded to threat 3380 | -9/Storage | Repaired Med. Laser 3471 | -9/Storage | Identified exit to Garrison 3484 | -9/Storage | Entered Garrison 3484 | -9/Garrison | Accompanied by 9 allies 3515 | -9/Garrison | Build established: Commander-Mutant 3584 | -9/Garrison | Triggered checkpoint 3618 | -9/Garrison | Triggered checkpoint 3740 | -9/Garrison | Triggered checkpoint 3760 | -9/Garrison | Triggered checkpoint 3796 | -9/Garrison | Lost 3 allies 3894 | -9/Garrison | Triggered checkpoint 3946 | -9/Garrison | Installed Relay Interface Framework 3964 | -9/Garrison | Triggered checkpoint 4007 | -9/Garrison | Core integrity fell below 50% 4018 | -9/Garrison | Core integrity fell below 20% 4019 | -9/Garrison | Destroyed by Y-45 Defender with Heavy Assault Rifle Last Messages --------------- 03940_ Triggered Alarm Trap. 03940_ An alarm sounds. Initiating installation procedure... 03946_ Relay Interface Framework installed. [Achievement: Join The Dark Side] With RIF installed, you can review your current list of abilities via the new button at the top-right of the HUD, or Spacebar+i. 03964_ Beams of light sweep through the air. An alarm sounds. 03971_ W-16 Scout sends out distress signal. 03996_ Adv. Treads severed. 03998_ Imp. Ion Engine severed. 04004_ Hvy. Assault Rifle destroyed. 04006_ L-31 Rogue destroyed. 04006_ Hrd. Light Armor Plating severed. 04007_ Acquired 29 matter. 04011_ Adv. Treads severed. 04016_ Med. Laser severed. 04017_ Adv. Treads destroyed. Map ----- +----------------------------------------------------+ | ?????????????????????????????????????????????????? | | ?????????????????????????????????????????????????? | | ?????????????????????????????????????????????????? | | ?????????????????????????????????????????????????? | | ?????????????????????????????????????????????????? | | ????????????????????????####?????????????????????? | | ???????????????????????? ????????????????????## | | ???????????????????????? ????????????????#####! | | ????????????????????????# #????????????????# | | ????????????????????????# #????#######?????# #### | | ????????????????????????# #????#!! //#?????# #??? | | ???????????????????????? #????#! /#?????# #??? | | ???????????????????????? #????#! /#?????# #??? | | ????????????????????????#ss#????#! /#?????# #??? | | ????????????????????????# #????### ###?????# #??? | | ????????????????????????# #??????# #???????# #??? | | ????????????????????????# #??????# #???????# #??? | | ????????????????????????# #??????# #???????# #??? | | ????????????????????????# #??????# #???????# #### | | ???????################## ########+##??????# | | ???????# =*%=%! %= #??????# | | ???????# ###===########## = #??????# | | ???????# #?#[=%#????????#[ ######## #??????# ## | | ?????### #?#####????????#!=#??????# #??????# #? | | ?????#"# #??????????????#%=#??????# #??????# #? | | ?????#" #??????????????#@l#??????# #??????# #? | | ?????#" #????????????? +*Ygg #???# #??????# #? | | ?????#" #????????????###^^## #???# ######## #? | | ?????#"# #??????????????# ^#??#???# ##[%!%## #? | | ?????### #?#####????????# #?????## ## [*=## #? | | ####???# #?# #????????# Y####### =% ## | | "" ##### ### ########## = | | %** | | "" ############################### ## ##%= ## | | ####?????????????????????????????# ## ##%% #? | | ?????????????????????????????????" !%%*=[ | | ?????????????????????????????????" = =% | | ?????????????????????????????????" * | | ?????????????????????????????????" | | ?????????????????????????????????# ## ## ## | | ?????????????????????????????????# ?# #? #? | | ???????????????????????????????? ? ? #? | | ??????????????????????????????? ? #? | | ??????????????????????????????#### ^ #? | | ?????????????????????????????????## ##""""## #? | | ??????????????????????????????????# ???????? #? | | ??????????????????????????????????? ???????? #? | | ??????????????????????????????????? ???????? ?? | | ?????????????????????????????????????????????????? | | ?????????????????????????????????????????????????? | +----------------------------------------------------+ Best States ------------- Heat Dissipation 42 Energy Generation 12 Energy Capacity 265 Matter Stores 300 Matter Capacity 300 Sight Range 18 Terrain Scan Range 16 Terrain Scan Density 10 Armor Coverage 150 Evasion (%) 55 Recoil Reduction 3 Item Schematics ----------------- None Robot Schematics ------------------ None Fabricated ------------ Nothing Repaired ---------- Med. Laser | 55% | -9/Storage Studied --------- None Alien Tech Used ----------------- None Achievements -------------- Join The Dark Side Novice Programmer Organ Harvest Part-time Mechanic Resistances Are Futile Spot Them First The More The Merrier There's More Where That Came From Challenges ------------ None Game ------ Seed BattleEnergyMesh Manual? 0 Play Time 00:57:11 Cumulative 8.8 hours Start 2026.01.03 @ 16:57:25 End 2026.01.03 @ 17:56:11 Sessions 1 Manual Loads 0 Difficulty Rogue Special Mode None Game No. 10 Rogue 10 Adventurer 0 Explorer 0 Win Type - Total 0 Types 0/0/0/0/0/0/0/0/0/0 Lore% 1 Gallery% 11 Achievement% 8 Wizard Run 0 Options --------- Layout 1 ASCII 0 Keyboard 1 Movement Arrows Keybinds 0 Fullscreen 1 Font 24/Smallcaps Map View 50x40 Zoom Use 0% Tactical HUD 1 Map Filters NONE Filters NONE Steam 1 RUN: 18d14490-221b-496f-aedd-41e9e8c9e0c5